bitfinex/quotes_SOLUSD_20250125
["timestamp","ask_amount","ask_price","bid_price","bid_amount"]
[1737818109279,23.776884,252.4,252.25,3.9643]
[1737818109780,23.776884,252.37,252.23,11.6627]
[1737818110179,20.0,252.38,252.23,11.6627]
[1737818110899,0.7924,252.37,252.23,11.6627]
[1737818111198,20.0,252.39,252.23,11.6627]
[1737818111400,20.0,252.39,252.23,21.5742]
[1737818111401,20.7924,252.39,252.23,21.5742]
[1737818111604,23.776884,252.38,252.23,21.5742]
[1737818111799,23.776884,252.38,252.23,11.6627]
[1737818112203,43.776884,252.38,252.23,11.6627]
[1737818112708,73.776884,252.38,252.23,7.6982]
[1737818113015,23.776884,252.32,252.23,1.6642]
[1737818114285,23.776884,252.32,252.23,1.7272]
[1737818114903,20.0,252.36,252.24,3.9644]
[1737818115210,23.776884,252.34,252.24,3.9644]
[1737818115708,23.776884,252.34,252.23,1.7272]
[1737818116396,23.776884,252.34,252.23,0.063]
[1737818116793,20.0,252.27,252.23,0.063]
[1737818117000,23.776884,252.26,252.23,0.063]
[1737818117903,0.7928,252.27,252.23,0.063]
[1737818119087,23.776884,252.24,252.23,0.063]
[1737818120419,23.776884,252.24,252.15,0.063]
[1737818120915,20.0,252.21,252.15,0.063]
[1737818121085,24.569884,252.2,252.15,0.063]
[1737818122719,20.7928,252.24,252.15,0.063]
[1737818123094,0.7928,252.24,252.15,0.063]
[1737818123897,43.776884,252.23,252.15,0.063]
[1737818124310,0.7929,252.22,252.15,0.063]
[1737818125911,20.7929,252.23,252.15,0.063]
[1737818126710,20.0,252.2,252.15,0.063]
[1737818126910,23.776884,252.19,252.15,0.063]
[1737818127513,0.793,252.18,252.15,0.063]
[1737818129231,44.776784,252.16,252.1,0.063]
[1737818129432,43.776884,252.16,252.1,0.063]
[1737818129633,0.9999,252.13,252.1,0.063]
[1737818129927,0.9999,252.13,251.97,0.063]
[1737818129928,24.776784,252.11,251.97,0.063]
[1737818130136,23.776884,252.07,251.97,0.063]
[1737818130431,30.0,252.09,251.97,0.063]
[1737818130607,0.7931,252.15,251.97,0.45981796]
[1737818130810,0.7931,252.15,252.02,3.9678]
[1737818131209,20.0,252.14,252.02,3.9678]
[1737818131407,0.7931,252.15,252.03,5.629]
[1737818131732,0.7931,252.15,252.03,11.8221]
[1737818131935,20.0,252.17,252.04,0.3966913]
[1737818132133,0.793,252.19,252.04,0.3966913]
[1737818132907,20.0,252.18,252.04,0.3966913]
[1737818133114,23.776884,252.18,252.05,3.9674]
[1737818134507,20.0,252.16,252.05,3.9674]
[1737818134713,20.0,252.16,252.03,11.8221]
[1737818134921,20.0,252.16,252.03,12.21878081]
[1737818136321,20.7931,252.16,252.03,12.21878081]
[1737818136832,0.7931,252.16,252.03,12.21878081]
[1737818137004,2.7749,252.25,252.06,20.0]
[1737818137208,2.7749,252.25,252.07,0.39658561]
[1737818137930,20.0,252.22,252.07,0.39658561]
[1737818138230,23.776884,252.21,252.08,3.9669]
[1737818138623,23.776884,252.21,252.09,0.39660345]
[1737818138941,0.7928,252.24,252.09,0.39660345]
[1737818139145,0.7928,252.24,252.11,6.1931]
[1737818139447,0.7926,252.32,252.11,6.58963814]
[1737818139752,23.776884,252.31,252.15,1.5984]
[1737818139917,0.7926,252.32,252.17,3.9655]
[1737818140117,0.03,252.24,252.18,0.39643402]
[1737818140547,0.03,252.24,252.18,20.39643402]
[1737818140733,0.03,252.24,252.19,6.1931]
[1737818140930,0.03,252.24,252.2,0.39637727]
[1737818141955,0.03,252.24,252.21,3.9649]
[1737818142133,0.03,252.24,252.22,0.39635182]
[1737818142337,0.03,252.24,252.23,1.5984]
[1737818144158,0.03,252.24,252.19,6.1931]
[1737818144352,0.03,252.24,252.17,1.5083]
[1737818144557,0.03,252.24,252.13,6.3441]
[1737818144558,20.0,252.22,252.13,6.3441]
[1737818144775,23.776884,252.21,252.14,30.0]
[1737818145234,23.776884,252.21,252.11,1.5083]
[1737818146071,0.793,252.2,252.11,1.5083]
[1737818146233,0.03,252.24,252.11,5.87129596]
[1737818146652,0.8229,252.24,252.11,5.87129596]
[1737818147849,20.0,252.23,252.11,5.87129596]
[1737818148936,20.0,252.23,252.11,5.4747]
[1737818149542,20.0,252.23,252.11,5.87126273]
[1737818149840,0.03,252.24,252.11,5.87126273]
[1737818150274,0.03,252.24,252.11,15.78756273]
[1737818151762,0.03,252.24,252.12,23.776884]
[1737818151962,0.03,252.24,252.14,3.966]
[1737818152132,0.03,252.24,252.15,0.39644674]
[1737818152547,0.03,252.24,252.16,6.3441]
[1737818152833,0.03,252.24,252.17,0.39644483]
[1737818153746,0.03,252.24,252.18,3.9654]
[1737818153966,0.03,252.24,252.19,0.39642376]
[1737818154752,0.03,252.24,252.19,20.39642376]
[1737818156040,0.03,252.24,252.21,20.0]
[1737818156244,0.03,252.24,252.23,1.5083]
[1737818157266,0.03,252.24,252.23,5.4729]
[1737818162259,0.03,252.24,252.21,3.9648]
[1737818162572,0.03,252.24,252.18,1.5214]
[1737818162772,0.03,252.24,252.17,3.9654]
[1737818164171,0.03,252.24,252.17,15.27579311]
[1737818164373,0.03,252.24,252.21,1.5133]
[1737818164574,0.03,252.24,252.22,0.39633896]
[1737818164755,0.03,252.34,252.22,24.17322296]
[1737818164961,0.03,252.34,252.25,20.0]
[1737818165175,0.03,252.34,252.27,6.6578]
[1737818165371,0.03,252.34,252.3,20.0]
[1737818165672,0.03,252.34,252.32,3.9632]
[1737818165873,6.2821,252.47,252.32,3.9632]
[1737818165874,50.6566,252.53,252.33,24.17309178]
[1737818166077,0.792,252.51,252.33,24.17309178]
[1737818166271,20.0,252.5,252.33,24.17309178]
[1737818166465,0.792,252.51,252.36,20.0]
[1737818166669,0.792,252.51,252.37,0.39611291]
[1737818167869,0.792,252.51,252.38,3.9622]
[1737818168177,0.792,252.51,252.39,0.3961167]
[1737818168769,20.0,252.5,252.36,24.3586182]
[1737818169073,20.0,252.5,252.36,0.3961182]
[1737818169280,20.0,252.5,252.36,4.3586182]
[1737818169575,20.0,252.5,252.36,24.3586182]
[1737818169875,0.7921,252.49,252.36,24.3586182]
[1737818170777,0.7921,252.49,252.36,4.3586182]
[1737818173867,0.03,252.5,252.4,20.0]
[1737818174673,0.03,252.5,252.41,0.39608438]
[1737818174979,0.03,252.5,252.41,4.35778438]
[1737818175199,0.03,252.5,252.37,6.6578]
[1737818175200,0.03,252.5,252.38,0.39608522]
[1737818175383,0.03,252.5,252.38,4.35828522]
[1737818175960,20.03,252.5,252.38,4.35828522]
[1737818176371,0.822,252.5,252.38,4.35828522]
[1737818177482,0.03,252.5,252.38,14.26388522]
[1737818178327,0.03,252.5,252.42,1.5133]
[1737818179330,0.03,252.5,252.43,0.39607502]
[1737818179605,0.03,252.5,252.44,3.9613]
[1737818182811,7.8366,252.59,252.44,3.9613]
[1737818183131,23.776884,252.58,252.44,3.9613]
[1737818183409,20.0,252.55,252.44,30.0]
[1737818184597,26.548184,252.58,252.44,30.0]
[1737818184914,26.548184,252.58,252.43,3.9614]
[1737818185116,20.0,252.55,252.42,1.5133]
[1737818185604,0.7919,252.54,252.42,1.5133]
[1737818185996,0.7919,252.54,252.42,5.4748]
[1737818186392,20.0,252.5,252.41,0.3960877]
[1737818186591,20.0,252.45,252.35,1.5314]
[1737818187613,0.7922,252.44,252.35,1.5314]
[1737818188110,0.7922,252.44,252.3,6.0742]
[1737818188893,22.7728,252.44,252.3,6.0742]
[1737818189194,0.7922,252.44,252.3,10.0376]
[1737818189829,23.776884,252.46,252.3,10.0376]
[1737818190119,24.569084,252.46,252.3,10.0376]
[1737818190324,0.7922,252.46,252.31,0.39622366]
[1737818191317,0.7922,252.46,252.34,0.063]
[1737818192094,2.3203,252.48,252.34,0.063]
[1737818193424,2.3203,252.48,252.34,4.0257]
[1737818193918,23.776884,252.47,252.34,0.063]
[1737818194900,20.0,252.44,252.34,0.063]
[1737818195103,30.0,252.46,252.34,0.063]
[1737818195104,43.776884,252.43,252.34,0.063]
[1737818195504,23.776884,252.38,252.34,0.063]
[1737818196024,20.0,252.39,252.34,0.063]
[1737818196409,23.776884,252.35,252.34,0.063]
[1737818196716,1.5282,252.36,252.34,0.063]
[1737818197326,23.776884,252.35,252.34,0.063]
[1737818197624,24.569384,252.35,252.34,0.063]
[1737818197827,24.569384,252.35,252.34,0.0001]
[1737818198524,23.776884,252.31,252.17,5.4968]
[1737818199318,23.776884,252.31,252.17,1.5314]
[1737818199506,23.776884,252.29,252.17,1.5314]
[1737818199900,23.776884,252.29,252.13,4.36260894]
[1737818200104,2.7744,252.3,252.13,4.36260894]
[1737818200607,0.7927,252.3,252.13,3.9661]
[1737818200827,0.7927,252.3,252.14,0.39652305]
[1737818201701,0.7927,252.3,252.15,3.9658]
[1737818202024,0.7927,252.3,252.16,0.39645074]
[1737818202721,20.0,252.33,252.16,0.39645074]
[1737818202924,44.569484,252.32,252.17,3.9655]
[1737818203129,0.7926,252.32,252.17,3.9655]
[1737818203422,0.7926,252.32,252.18,0.39645546]
[1737818203620,0.7926,252.34,252.18,0.39645546]
[1737818204104,20.0,252.32,252.18,0.39645546]
[1737818204304,20.0,252.32,252.17,13.8794]
[1737818204305,20.0,252.32,252.17,3.9655]
[1737818205012,20.0,252.31,252.13,10.3117266]
[1737818205326,23.776884,252.3,252.16,0.063]
[1737818205719,20.0,252.3,252.16,0.063]
[1737818206630,31.605384,252.3,252.16,0.063]
[1737818206821,7.8285,252.3,252.16,0.063]
[1737818207017,7.8285,252.3,252.17,3.9655]
[1737818207325,20.0,252.27,252.16,4.0286]
[1737818208021,20.0,252.26,252.16,0.063]
[1737818208220,20.0,252.26,252.16,4.0286]
[1737818208426,23.776884,252.25,252.16,4.0286]
[1737818209734,57.484343,252.3,252.16,4.0286]
[1737818210115,20.0,252.27,252.16,4.42511386]
[1737818210415,20.0,252.27,252.16,14.33941386]
[1737818211436,49.655843,252.3,252.16,14.33941386]
[1737818211625,23.776884,252.34,252.16,14.33941386]
[1737818211807,20.0,252.34,252.16,14.33941386]
[1737818212331,4.5219,252.36,252.19,20.0]
[1737818212532,23.776884,252.35,252.2,0.39641193]
[1737818213117,20.0,252.32,252.21,3.9649]
[1737818213318,23.776884,252.35,252.21,5.5773]
[1737818213533,23.776884,252.35,252.21,15.4896]
[1737818213728,4.0835625,252.39,252.22,0.39641286]
[1737818213930,10.20218064,252.43,252.22,6.82001286]
[1737818214127,23.776884,252.42,252.22,6.82001286]
[1737818214335,10.20218064,252.43,252.22,6.82001286]
[1737818214336,20.0,252.4,252.22,6.82001286]
[1737818214533,20.0,252.38,252.22,6.82001286]
[1737818215040,23.776884,252.37,252.22,6.4236]
[1737818215539,23.776884,252.37,252.23,3.9646]
[1737818216119,2.9,252.41,252.23,13.8761]
[1737818216326,3.6923,252.41,252.24,0.39637572]
[1737818216918,20.0,252.4,252.24,0.39637572]
[1737818217335,23.776884,252.39,252.24,0.39637572]
[1737818217644,23.776884,252.39,252.25,33.8751]
[1737818219449,23.806884,252.39,252.27,3.964]
[1737818219626,0.03,252.39,252.28,0.39631363]
[1737818219832,0.03,252.39,252.29,1.6124]
[1737818221340,0.03,252.39,252.3,3.9635]
[1737818221726,0.03,252.39,252.3,13.8723]
[1737818223447,0.03,252.39,252.29,1.6124]
[1737818223448,20.03,252.39,252.29,1.6124]
[1737818224528,20.03,252.39,252.29,5.576]
[1737818224950,0.03,252.39,252.29,5.576]
[1737818225272,0.03,252.39,252.3,7.04037821]
[1737818227066,0.03,252.39,252.31,13.8717]
[1737818227780,0.03,252.39,252.31,3.9633]
[1737818229943,0.03,252.39,252.3,6.6441]
[1737818232068,0.7924,252.38,252.29,5.5759]
[1737818232642,0.7924,252.38,252.3,0.063]
[1737818232864,23.776884,252.37,252.3,0.063]
[1737818233048,20.0,252.34,252.3,0.063]
[1737818233246,23.776884,252.33,252.3,0.063]
[1737818233744,20.0,252.34,252.3,0.063]
[1737818235366,51.7,252.37,252.3,0.063]
[1737818235761,52.4924,252.37,252.3,0.063]
[1737818237770,52.4924,252.37,252.28,3.5267]
[1737818238076,0.03,252.39,252.25,3.9643]
[1737818238976,20.0,252.32,252.24,1.6356]
[1737818239356,23.776884,252.31,252.24,1.6356]
[1737818240158,24.569584,252.31,252.24,1.6356]
[1737818241781,20.0,252.28,252.17,1.6356]
[1737818242362,23.776884,252.27,252.17,1.6356]
[1737818243671,0.7927,252.29,252.18,3.9654]
[1737818243885,23.776884,252.28,252.18,3.9654]
[1737818244068,0.7925,252.34,252.18,3.9654]
[1737818244465,20.0,252.3,252.18,3.9654]
[1737818244783,23.776884,252.29,252.17,1.6356]
[1737818244961,23.776884,252.29,252.17,5.6011]
[1737818245155,23.776884,252.29,252.18,0.063]
[1737818245584,0.7927,252.28,252.18,4.0283]
[1737818247813,23.776884,252.29,252.18,4.0283]
[1737818248197,24.569584,252.29,252.18,4.0283]
[1737818249469,52.4926,252.33,252.19,0.39647214]
[1737818249687,0.7925,252.35,252.2,20.0]
[1737818249866,23.776884,252.34,252.21,20.39637379]
[1737818250067,0.7925,252.35,252.21,20.39637379]
[1737818250268,0.8225,252.37,252.21,20.39637379]
[1737818250468,23.776884,252.36,252.21,20.39637379]
[1737818251192,0.03,252.37,252.21,20.39637379]
[1737818251488,0.03,252.37,252.22,13.8766]
[1737818251708,0.03,252.37,252.23,0.39634761]
[1737818252008,0.03,252.37,252.24,7.7498]
[1737818252215,0.03,252.37,252.27,20.0]
[1737818253612,0.03,252.37,252.28,13.8734]
[1737818253797,0.03,252.37,252.29,1.5803]
[1737818254501,0.03,252.37,252.31,20.0]
[1737818255006,0.03,252.37,252.32,6.1695]
[1737818255408,20.0,252.49,252.33,1.5803]
[1737818255601,20.0,252.48,252.34,13.8701]
[1737818256691,23.776884,252.47,252.34,13.8701]
[1737818258110,0.7922,252.46,252.34,3.9629]
[1737818259093,0.7922,252.46,252.34,33.9629]
[1737818260026,20.0,252.48,252.34,43.8701]
[1737818260321,23.776884,252.47,252.34,13.8701]
[1737818261526,23.776884,252.47,252.34,43.8701]
[1737818266521,20.792,252.51,252.35,0.39617275]
[1737818266723,23.776884,252.5,252.35,0.39617275]
[1737818267912,24.568884,252.5,252.34,43.8701]
[1737818270830,0.792,252.5,252.34,43.8701]
[1737818271324,23.776884,252.49,252.34,33.9629]
[1737818271533,23.776884,252.45,252.34,3.9629]
[1737818273035,24.569084,252.45,252.34,3.9629]
[1737818273444,24.569084,252.45,252.33,1.5803]
[1737818273620,24.569084,252.45,252.33,5.5433]
[1737818274303,24.569084,252.45,252.34,0.063]
[1737818274510,23.776884,252.41,252.34,0.063]
[1737818275324,24.569184,252.41,252.34,0.063]
[1737818277863,23.776884,252.41,252.34,0.063]
[1737818278031,23.776884,252.41,252.34,4.0257]
[1737818278833,23.776884,252.41,252.34,0.063]
[1737818281445,23.776884,252.42,252.34,0.063]
[1737818281852,43.776884,252.38,252.34,0.063]
[1737818282229,23.776884,252.36,252.34,0.063]
[1737818282733,44.569384,252.35,252.34,0.063]
[1737818285734,24.569384,252.35,252.34,0.063]
[1737818286348,0.7922,252.46,252.34,0.063]
[1737818286554,51.7,252.45,252.34,0.063]
[1737818286934,20.0,252.42,252.34,4.0258]
[1737818287135,23.776884,252.41,252.34,0.063]
[1737818287540,23.776884,252.44,252.34,0.063]
[1737818287937,20.0,252.41,252.34,0.063]
[1737818288748,20.0,252.42,252.34,0.063]
[1737818289050,23.776884,252.41,252.34,0.063]
[1737818289262,20.0,252.42,252.34,0.063]
[1737818290054,23.776884,252.41,252.34,0.063]
[1737818290856,0.7922,252.44,252.34,4.0258]
[1737818291260,0.03,252.52,252.35,1.90802067]
[1737818291455,0.822,252.52,252.36,6.005]
[1737818291656,0.822,252.52,252.37,0.39612868]
[1737818291841,23.776884,252.51,252.37,0.39612868]
[1737818292469,44.568884,252.51,252.38,3.9622]
[1737818292964,24.568884,252.51,252.38,3.9622]
[1737818293768,0.03,252.52,252.41,20.0]
[1737818293970,0.03,252.52,252.45,7.5168]
[1737818294160,25.58297275,252.64,252.49,1.5118]
[1737818295055,23.776884,252.63,252.49,1.5118]
[1737818295256,23.776884,252.61,252.49,5.4722]
[1737818295653,23.776884,252.61,252.49,1.5118]
[1737818296386,23.776884,252.57,252.49,1.5118]
[1737818297384,0.7918,252.56,252.49,1.5118]
[1737818297563,51.7,252.69,252.49,1.5118]
[1737818297893,51.7,252.68,252.5,0.39597309]
[1737818298476,20.0,252.61,252.5,0.39597309]
[1737818298678,20.0,252.61,252.5,4.35627309]
[1737818298867,0.7915,252.66,252.5,4.35627309]
[1737818299177,20.0,252.65,252.49,1.5118]
[1737818299384,20.0,252.64,252.49,1.5118]
[1737818300359,20.0,252.65,252.49,1.5118]
[1737818300559,0.7916,252.63,252.49,5.4722]
[1737818300756,23.776884,252.62,252.49,1.5118]
[1737818300966,20.0,252.59,252.49,1.5118]
[1737818301166,23.776884,252.59,252.49,1.5118]
[1737818302583,23.776884,252.57,252.49,1.5118]
[1737818302900,23.776884,252.57,252.49,5.4722]
[1737818303486,23.776884,252.57,252.49,1.5118]
[1737818304191,20.7917,252.6,252.49,1.5118]
[1737818304382,1.0,252.69,252.49,1.5118]
[1737818304383,4.26189339,252.71,252.49,5.4723]
[1737818304687,1.9785,252.71,252.5,7.02066555]
[1737818304890,23.776884,252.7,252.5,6.6246]
[1737818305073,4.08370371,252.71,252.51,1.5347]
[1737818305267,0.7913,252.73,252.52,8.1593]
[1737818305462,0.7913,252.73,252.55,20.0]
[1737818306074,25.58267275,252.74,252.56,28.55516309]
[1737818306272,24.79137275,252.74,252.56,28.55516309]
[1737818306476,23.776884,252.73,252.57,3.9592]
[1737818306671,25.58267275,252.74,252.58,0.39579982]
[1737818306991,20.0,252.73,252.58,0.39579982]
[1737818307493,43.776884,252.73,252.57,3.9592]
[1737818307685,52.4912,252.76,252.58,0.39585605]
[1737818308266,0.8212,252.78,252.59,1.5347]
[1737818308470,0.03,252.78,252.61,3.9586]
[1737818308669,0.03,252.78,252.62,0.39573463]
[1737818309668,0.03,252.78,252.63,6.6246]
[1737818310583,23.776884,252.77,252.63,10.5828]
[1737818310783,0.8212,252.78,252.64,0.39574449]
[1737818310983,0.8212,252.78,252.63,10.5828]
[1737818311183,23.776884,252.77,252.63,10.5828]
[1737818311575,23.776884,252.75,252.63,6.6246]
[1737818312275,75.476884,252.75,252.63,6.6246]
[1737818312489,20.0,252.72,252.63,6.6246]
[1737818312881,43.776884,252.75,252.63,6.6246]
[1737818313077,23.776884,252.75,252.63,6.6246]
[1737818313495,43.776884,252.72,252.63,6.6246]
[1737818313695,0.7914,252.71,252.63,6.6246]
[1737818314005,0.7914,252.71,252.59,1.5347]
[1737818314006,20.0,252.66,252.59,1.5347]
[1737818314175,23.776884,252.65,252.59,1.5347]
[1737818314671,23.776884,252.65,252.53,1.5347]
[1737818314872,23.776884,252.61,252.53,1.5347]
[1737818315495,23.776884,252.66,252.53,1.5347]
[1737818316277,23.776884,252.63,252.53,1.5347]
[1737818316487,23.776884,252.59,252.53,1.5347]
[1737818317390,23.776884,252.63,252.53,1.5347]
[1737818317696,51.7,252.64,252.53,1.5347]
[1737818318493,23.776884,252.63,252.53,1.5347]
[1737818318798,24.568484,252.63,252.53,1.5347]
[1737818318976,20.0,252.6,252.53,1.5347]
[1737818319479,50.0,252.58,252.46,1.5347]
[1737818319679,23.776884,252.53,252.46,1.5347]
[1737818320482,0.792,252.52,252.46,1.5347]
[1737818320781,23.776884,252.51,252.46,1.5347]
[1737818321284,23.776884,252.51,252.37,3.9623]
[1737818321492,23.776884,252.51,252.36,8.1593]
[1737818322492,0.7918,252.56,252.39,20.0]
[1737818322702,23.776884,252.55,252.4,3.9619]
[1737818324289,23.776884,252.55,252.41,0.39611753]
[1737818324879,24.568784,252.55,252.42,3.9616]
[1737818325803,0.7919,252.55,252.42,3.9616]
[1737818326494,23.776884,252.53,252.41,6.9617]
[1737818327077,23.776884,252.51,252.41,6.9617]
[1737818327581,0.792,252.52,252.41,6.9617]
[1737818327781,20.0,252.53,252.41,6.9617]
[1737818328100,52.4919,252.56,252.42,0.39610351]
[1737818328293,52.4919,252.56,252.43,1.6017]
[1737818328502,0.7919,252.56,252.43,1.6017]
[1737818329408,23.776884,252.56,252.44,3.9613]
[1737818329599,20.0,252.57,252.44,3.9613]
[1737818329906,23.776884,252.56,252.44,3.9613]
[1737818330484,0.7919,252.55,252.44,3.9613]
[1737818331505,0.7918,252.57,252.45,0.39608833]
[1737818331681,20.0,252.59,252.46,6.3655]
[1737818331682,0.7918,252.59,252.46,6.3655]
[1737818332104,23.776884,252.58,252.46,6.3655]
[1737818333307,20.0,252.58,252.46,10.3264]
[1737818334009,0.7917,252.61,252.46,10.3264]
[1737818334010,20.7917,252.61,252.47,0.39605059]
[1737818334311,20.0,252.6,252.46,10.3264]
[1737818334808,0.7914,252.7,252.53,20.0]
[1737818335011,0.7914,252.72,252.54,1.6017]
[1737818335317,0.7914,252.72,252.56,3.9594]
[1737818335610,0.7914,252.72,252.57,0.39580772]
[1737818336111,0.7912,252.76,252.58,6.3655]
[1737818336306,43.5513,252.75,252.59,1.99745195]
[1737818337010,23.776884,252.74,252.59,1.99745195]
[1737818337217,43.5513,252.75,252.59,1.99745195]
[1737818337715,23.776884,252.74,252.6,3.9588]
[1737818337953,23.776884,252.74,252.61,0.39578707]
[1737818338411,0.03,252.78,252.63,1.6017]
[1737818338587,20.0,252.84,252.64,0.39569467]
[1737818338789,20.0,252.83,252.64,0.39569467]
[1737818338989,51.7,252.86,252.64,0.39569467]
[1737818339399,23.776884,252.85,252.64,0.39569467]
[1737818339798,23.776884,252.81,252.65,3.958]
[1737818340116,23.776884,252.81,252.66,0.39570522]
[1737818340290,0.791,252.84,252.66,0.39570522]
[1737818340490,23.776884,252.83,252.64,0.39569526]
[1737818340810,23.776884,252.79,252.63,5.56]
[1737818341592,0.7912,252.78,252.63,5.56]
[1737818342310,0.7912,252.78,252.64,0.3957394]
[1737818342513,0.7912,252.78,252.63,5.56]
[1737818342514,23.776884,252.77,252.63,5.56]
[1737818343292,23.776884,252.73,252.63,1.6017]
[1737818343706,0.7913,252.72,252.63,1.6017]
[1737818344591,20.0,252.77,252.63,1.6017]
[1737818344793,22.7692,252.77,252.63,1.6017]
[1737818344994,20.0,252.76,252.63,1.6017]
[1737818345214,23.776884,252.75,252.63,1.6017]
[1737818345615,23.776884,252.75,252.63,5.5599]
[1737818345812,24.568184,252.75,252.63,5.5599]
[1737818346193,20.0,252.8,252.63,5.5599]
[1737818346519,1.9777,252.82,252.63,5.95567322]
[1737818347113,23.776884,252.79,252.63,5.95567322]
[1737818347309,0.7911,252.79,252.63,5.95567322]
[1737818348118,23.776884,252.78,252.63,5.95567322]
[1737818348317,24.568084,252.78,252.63,5.95567322]
[1737818348517,24.568084,252.78,252.63,5.5599]
[1737818349794,23.776884,252.74,252.63,1.6017]
[1737818350625,23.776884,252.74,252.63,5.56]
[1737818351328,0.03,252.75,252.63,5.56]
[1737818353237,0.03,252.75,252.64,0.39572906]
[1737818354536,0.03,252.75,252.65,3.958]
[1737818354932,0.03,252.75,252.66,0.39570172]
[1737818355121,0.03,252.75,252.67,1.61]
[1737818355307,0.03,252.75,252.68,0.39565528]
[1737818355516,0.03,252.75,252.69,6.3054]
[1737818356723,0.03,252.75,252.7,3.9572]
[1737818356927,0.03,252.75,252.7,4.352835]
[1737818358147,0.03,252.75,252.72,20.0]
[1737818358819,0.03,252.75,252.73,0.39561724]
[1737818359021,0.7908,252.9,252.74,1.61]
[1737818359219,0.7908,252.9,252.75,0.39553887]
[1737818359420,0.7908,252.9,252.74,1.61]
[1737818359738,20.0,252.86,252.74,1.61]
[1737818360128,20.0,252.85,252.74,1.61]
[1737818360637,23.776884,252.84,252.74,1.61]
[1737818360812,20.0,252.85,252.74,1.61]
[1737818361012,0.791,252.84,252.74,1.61]
[1737818362911,0.791,252.84,252.74,1.11]
[1737818363643,0.03,252.84,252.74,5.0665]
[1737818363828,0.03,252.84,252.75,0.39557148]
[1737818364637,0.7908,252.89,252.75,0.39557148]
[1737818364950,0.7908,252.89,252.75,0.39557095]
[1737818365837,23.776884,252.9,252.76,3.9563]
[1737818366547,20.0,252.91,252.76,3.9563]
[1737818366939,24.567684,252.9,252.74,1.11]
[1737818367123,23.776884,252.89,252.74,5.0665]
[1737818367325,43.776884,252.86,252.74,1.11]
[1737818368344,54.4678,252.9,252.74,1.11]
[1737818368736,20.0,252.86,252.74,1.11]
[1737818369756,20.0,252.84,252.74,1.11]
[1737818370842,0.791,252.83,252.74,1.11]
[1737818373857,0.791,252.83,252.74,5.0665]
[1737818374044,0.791,252.83,252.74,1.11]
[1737818375030,20.0,252.85,252.74,1.11]
[1737818375241,20.7909,252.85,252.74,1.11]
[1737818375443,20.7909,252.85,252.74,5.0666]
[1737818376635,0.7909,252.87,252.74,5.1296]
[1737818376829,0.03,252.83,252.74,5.1296]
[1737818377546,0.03,252.83,252.74,1.173]
[1737818377859,20.0,252.85,252.74,1.173]
[1737818378251,20.0,252.83,252.74,1.173]
[1737818378461,23.776884,252.82,252.74,0.063]
[1737818378757,0.7912,252.78,252.74,0.063]
[1737818381865,1.9778,252.81,252.74,0.063]
[1737818381866,0.791,252.83,252.74,0.063]
[1737818382043,20.0,252.81,252.74,0.063]
[1737818382735,44.567984,252.8,252.74,0.063]
[1737818383869,0.7911,252.8,252.74,0.063]
[1737818384964,20.0,252.8,252.74,0.063]